fUST/lending_fUST_20251120
["ID","MTS","AMOUNT","RATE_DAILY","PERIOD"]
[394458384,1763596415183,500.0,0.00040115,30]
[394458385,1763596415341,598.57,0.00040115,30]
[394458386,1763596415426,500.0,0.00040115,30]
[394458387,1763596415573,598.57,0.00040115,30]
[394458388,1763596415729,500.0,0.00040115,30]
[394458389,1763596415818,598.57,0.00040115,30]
[394458390,1763596415971,500.0,0.00040115,30]
[394458391,1763596416067,598.57,0.00040115,30]
[394458392,1763596416211,500.0,0.00040115,30]
[394458393,1763596416303,598.57,0.00040115,30]
[394458394,1763596416448,500.0,0.00040115,120]
[394458395,1763596416531,500.0,0.00040115,30]
[394458396,1763596416765,598.57,0.00040115,30]
[394458397,1763596416861,611.73229788,0.00040115,30]
[394458398,1763596416952,500.0,0.00040115,120]
[394458399,1763596417036,598.57,0.00040115,30]
[394458400,1763596417120,500.0,0.00040115,120]
[394458401,1763596417212,598.57,0.00040115,120]
[394458402,1763596417299,500.0,0.00040115,120]
[394458403,1763596417388,598.57,0.00040115,120]
[394458404,1763596417473,500.0,0.00040115,120]
[394458405,1763596417557,598.57,0.00040115,120]
[394458406,1763596417722,500.0,0.00040115,120]
[394458407,1763596417808,598.57,0.00040115,120]
[394458408,1763596418011,500.0,0.00040115,120]
[394458409,1763596418107,598.57,0.00040115,120]
[394458410,1763596418249,500.0,0.00040115,120]
[394458411,1763596418340,598.57,0.00040115,120]
[394458412,1763596418433,2165.34,0.00040115,30]
[394458413,1763596418521,500.0,0.00040115,120]
[394458414,1763596418604,598.57,0.00040115,120]
[394458415,1763596418723,2165.34,0.00040115,30]
[394458416,1763596418823,421.73640651,0.00040115,120]
[394458417,1763596418921,598.57,0.00040115,120]
[394458418,1763596419024,2165.34,0.00040115,30]
[394458419,1763596419117,598.57,0.00040115,120]
[394458420,1763596419250,2165.34,0.00040115,30]
[394458421,1763596419345,598.57,0.00040115,120]
[394458422,1763596419496,2165.34,0.00040115,30]
[394458423,1763596419582,598.57,0.00040115,120]
[394458424,1763596419754,500.0,0.00040115,30]
[394458425,1763596419846,2165.34,0.00040115,30]
[394458426,1763596419934,598.57,0.00040115,120]
[394458427,1763596420023,582.3503413,0.00040115,30]
[394458428,1763596420113,2165.34,0.00040115,30]
[394458429,1763596420205,598.57,0.00040115,120]
[394458430,1763596420329,2165.34,0.00040115,30]
[394458431,1763596420414,598.78128302,0.00040115,120]
[394458432,1763596420513,2165.34,0.00040115,30]
[394458433,1763596420766,2165.34,0.00040115,30]
[394458434,1763596420854,500.0,0.00040115,30]
[394458435,1763596421025,500.0,0.00040115,30]
[394458436,1763596421112,2165.34,0.00040115,120]
[394458437,1763596421285,500.0,0.00040115,30]
[394458438,1763596421372,2165.34,0.00040115,120]
[394458439,1763596421536,2165.34,0.00040115,120]
[394458440,1763596421619,500.0,0.00040115,30]
[394458441,1763596421850,2165.34,0.00040115,120]
[394458442,1763596421936,500.0,0.00040115,30]
[394458443,1763596422093,2165.34,0.00040115,120]
[394458444,1763596422172,500.0,0.00040115,30]
[394458445,1763596422350,2165.34,0.00040115,120]
[394458446,1763596422437,515.69058529,0.00040115,30]
[394458447,1763596422599,2165.34,0.00040115,120]
[394458448,1763596422875,2165.34,0.00040115,120]
[394458449,1763596423190,2165.34,0.00040115,120]
[394458450,1763596423425,500.0,0.00040115,30]
[394458451,1763596423512,2165.34,0.00040115,120]
[394458452,1763596423670,500.0,0.00040115,30]
[394458453,1763596423787,2165.34,0.00040115,120]
[394458454,1763596423948,2165.34,0.00040115,120]
[394458455,1763596424044,500.0,0.00040115,30]
[394458456,1763596424186,2165.34,0.00040115,120]
[394458457,1763596424274,500.0,0.00040115,30]
[394458458,1763596424438,500.0,0.00040115,30]
[394458459,1763596424522,2165.56804143,0.00040115,120]
[394458460,1763596424685,500.0,0.00040115,30]
[394458461,1763596424775,604.95689775,0.00040115,30]
[394458462,1763596424928,500.0,0.00040115,30]
[394458463,1763596425265,532.46090252,0.00040115,30]
[394458464,1763596425354,500.0,0.00040115,30]
[394458465,1763596425483,500.0,0.00040115,30]
[394458466,1763596425721,500.0,0.00040115,30]
[394458467,1763596425813,543.40652786,0.00040115,30]
[394458468,1763596425948,261.69,0.00040115,120]
[394458469,1763596427733,500.0,0.00040115,30]
[394458470,1763596428059,206.04452298,0.00040115,30]
[394458471,1763596428443,500.0,0.00040115,30]
[394458472,1763596428671,510.63567759,0.00040115,30]
[394458473,1763596430978,500.0,0.00040115,30]
[394458474,1763596431176,500.0,0.00040115,30]
[394458475,1763596431323,500.0,0.00040115,30]
[394458476,1763596431410,500.0,0.00040115,30]
[394458477,1763596431526,500.0,0.00040115,30]
[394458478,1763596431623,500.0,0.00040115,30]
[394458479,1763596431709,1409.11,0.00040115,30]
[394458480,1763596431794,500.0,0.00040115,30]
[394458481,1763596431984,500.0,0.00040115,30]
[394458482,1763596432068,1409.11,0.00040115,30]
[394458483,1763596432147,500.0,0.00040115,30]
[394458484,1763596432228,500.0,0.00040115,30]
[394458485,1763596432317,1409.11,0.00040115,30]
[394458486,1763596432403,500.0,0.00040115,30]
[394458487,1763596432488,500.0,0.00040115,30]
[394458488,1763596432571,500.0,0.00040115,30]
[394458489,1763596432664,500.0,0.00040115,30]
[394458490,1763596432827,500.0,0.00040115,30]
[394458491,1763596432911,1409.11,0.00040115,30]
[394458492,1763596433099,500.0,0.00040115,30]
[394458493,1763596433178,1409.11,0.00040115,30]
[394458494,1763596433265,150.41157921,0.00040115,30]
[394458495,1763596433346,500.0,0.00040115,30]
[394458496,1763596433432,1409.11,0.00040115,30]
[394458497,1763596433661,500.0,0.00040115,120]
[394458498,1763596433751,1409.11,0.00040115,30]
[394458499,1763596433902,500.0,0.00040115,120]
[394458500,1763596434002,1409.11,0.00040115,30]
[394458501,1763596434083,500.0,0.00040115,30]
[394458502,1763596434180,500.0,0.00040115,120]
[394458503,1763596434261,1409.11,0.00040115,30]
[394458504,1763596434342,500.0,0.00040115,30]
[394458505,1763596434427,500.0,0.00040115,120]
[394458506,1763596434524,1409.11,0.00040115,30]
[394458507,1763596434605,500.0,0.00040115,30]
[394458508,1763596434706,500.0,0.00040115,120]
[394458509,1763596434796,1409.11,0.00040115,120]
[394458510,1763596434884,500.0,0.00040115,30]
[394458511,1763596434972,500.0,0.00040115,120]
[394458512,1763596435062,1409.11,0.00040115,120]
[394458513,1763596435146,500.0,0.00040115,30]
[394458514,1763596435229,170.16005316,0.00040115,120]
[394458515,1763596435325,1409.11,0.00040115,120]
[394458516,1763596435519,1409.11,0.00040115,120]
[394458517,1763596435760,500.0,0.00040115,30]
[394458518,1763596435858,1409.11,0.00040115,120]
[394458519,1763596435982,500.0,0.00040115,30]
[394458520,1763596436061,1409.11,0.00040115,120]
[394458521,1763596436134,533.53445625,0.00040115,30]
[394458522,1763596436230,500.0,0.00040115,30]
[394458523,1763596436316,1409.11,0.00040115,120]
[394458524,1763596436449,500.0,0.00040115,30]
[394458525,1763596436532,1409.11,0.00040115,120]
[394458526,1763596436700,500.0,0.00040115,30]
[394458527,1763596436793,1409.11,0.00040115,120]
[394458528,1763596436951,500.0,0.00040115,120]
[394458529,1763596437040,1409.11,0.00040115,120]
[394458530,1763596437195,500.0,0.00040115,120]
[394458531,1763596437313,1409.11,0.00040115,120]
[394458532,1763596437581,212.08,0.00040115,120]
[394458533,1763596437824,1409.11,0.00040115,120]
[394458534,1763596438084,1409.11,0.00040115,120]
[394458535,1763596438323,1409.2192472,0.00040115,120]
[394458536,1763596438398,195.00509387,0.00040115,30]
[394458537,1763596439099,500.0,0.00040115,30]
[394458538,1763596439327,500.0,0.00040115,30]
[394458539,1763596439549,500.0,0.00040115,30]
[394458540,1763596439825,620.38489196,0.00040115,30]
[394458541,1763596440493,500.0,0.00040115,30]
[394458542,1763596440747,500.0,0.00040115,30]
[394458543,1763596440973,500.0,0.00040115,30]
[394458544,1763596441250,500.0,0.00040115,30]
[394458545,1763596441542,500.0,0.00040115,30]
[394458546,1763596441790,500.0,0.00040115,30]
[394458547,1763596442163,500.0,0.00040115,30]
[394458548,1763596442378,500.0,0.00040115,30]
[394458549,1763596442580,500.0,0.00040115,30]
[394458550,1763596442828,500.0,0.00040115,30]
[394458551,1763596443050,500.0,0.00040115,120]
[394458552,1763596443284,500.0,0.00040115,120]
[394458553,1763596443524,500.0,0.00040115,120]
[394458554,1763596443787,500.0,0.00040115,120]
[394458555,1763596443895,540.25521941,0.00040115,30]
[394458556,1763596444074,850.34,0.00040115,30]
[394458557,1763596444333,850.34,0.00040115,30]
[394458558,1763596444574,500.0,0.00040115,120]
[394458559,1763596444661,850.34,0.00040115,30]
[394458560,1763596444822,500.0,0.00040115,120]
[394458561,1763596444928,850.34,0.00040115,30]
[394458562,1763596445104,500.0,0.00040115,120]
[394458563,1763596445192,850.34,0.00040115,30]
[394458564,1763596445280,500.0,0.00040115,30]
[394458565,1763596445386,500.0,0.00040115,120]
[394458566,1763596445474,850.34,0.00040115,30]
[394458567,1763596445564,500.0,0.00040115,30]
[394458568,1763596445650,500.0,0.00040115,30]
[394458569,1763596445759,500.0,0.00040115,120]
[394458570,1763596445848,500.0,0.00040115,30]
[394458571,1763596445934,500.0,0.00040115,30]
[394458572,1763596446019,850.34,0.00040115,30]
[394458573,1763596446102,500.0,0.00040115,120]
[394458574,1763596446186,500.0,0.00040115,30]
[394458575,1763596446265,850.34,0.00040115,30]
[394458576,1763596446347,500.0,0.00040115,30]
[394458577,1763596446430,500.0,0.00040115,120]
[394458578,1763596446511,500.0,0.00040115,30]
[394458579,1763596446640,850.34,0.00040115,30]
[394458580,1763596446748,500.0,0.00040115,30]
[394458581,1763596446846,500.0,0.00040115,120]
[394458582,1763596446934,500.0,0.00040115,30]
[394458583,1763596447041,850.34,0.00040115,30]
[394458584,1763596447125,500.0,0.00040115,30]
[394458585,1763596447210,640.26907378,0.00040115,120]
[394458586,1763596447294,156.15408474,0.00040115,30]
[394458587,1763596447380,850.34,0.00040115,120]
[394458588,1763596447465,500.0,0.00040115,30]
[394458589,1763596447549,850.34,0.00040115,120]
[394458590,1763596447640,500.0,0.00040115,30]
[394458591,1763596447736,850.34,0.00040115,120]
[394458592,1763596447830,500.0,0.00040115,30]
[394458593,1763596447932,850.34,0.00040115,120]
[394458594,1763596448026,500.0,0.00040115,30]
[394458595,1763596448115,850.34,0.00040115,120]
[394458596,1763596448201,500.0,0.00040115,30]
[394458597,1763596448424,500.0,0.00040115,120]
[394458598,1763596448652,850.34,0.00040115,120]
[394458599,1763596448795,500.0,0.00040115,120]
[394458600,1763596448906,850.34,0.00040115,120]
[394458601,1763596449008,616.71673525,0.00040115,120]
[394458602,1763596449099,850.34,0.00040115,120]
[394458603,1763596449196,850.34,0.00040115,120]
[394458604,1763596449978,850.34,0.00040115,120]
[394458605,1763596450067,850.34,0.00040115,120]
[394458606,1763596450157,850.34,0.00040115,120]
[394458607,1763596450251,850.34,0.00040115,120]
[394458608,1763596450421,850.4014188,0.00040115,120]
[394458609,1763596453499,500.0,0.00040115,30]
[394458610,1763596453748,500.0,0.00040115,30]
[394458611,1763596453993,500.0,0.00040115,30]
[394458612,1763596454239,500.0,0.00040115,30]
[394458613,1763596454414,500.0,0.00040115,30]
[394458614,1763596454763,500.0,0.00040115,30]
[394458615,1763596454865,500.0,0.00040115,30]
[394458616,1763596454993,500.0,0.00040115,30]
[394458617,1763596455137,500.0,0.00040115,30]
[394458618,1763596455229,500.0,0.00040115,30]
[394458619,1763596455397,500.0,0.00040115,30]
[394458620,1763596455485,500.0,0.00040115,30]
[394458621,1763596455666,190.93891181,0.00040115,30]
[394458622,1763596455766,500.0,0.00040115,30]
[394458623,1763596455953,500.0,0.00040115,30]
[394458624,1763596456168,500.0,0.00040115,30]
[394458625,1763596456407,457.52155821,0.00040115,30]
[394458626,1763596457534,500.0,0.00040115,30]
[394458627,1763596457773,500.0,0.00040115,30]
[394458628,1763596458022,500.0,0.00040115,30]
[394458629,1763596458290,500.0,0.00040115,30]
[394458630,1763596458519,500.0,0.00040115,30]
[394458631,1763596458761,500.0,0.00040115,30]
[394458632,1763596459017,500.0,0.00040115,30]
[394458633,1763596459241,500.0,0.00040115,30]
[394458634,1763596459975,500.0,0.00040115,30]
[394458635,1763596460258,273.45590907,0.00040115,30]
[394458636,1763596462203,500.0,0.00040115,30]
[394458637,1763596462471,500.0,0.00040115,30]
[394458638,1763596462689,500.0,0.00040115,30]
[394458639,1763596462768,529.39859071,0.00040115,30]
[394458640,1763596462843,500.0,0.00040115,30]
[394458641,1763596462916,500.0,0.00040115,30]
[394458642,1763596463003,500.0,0.00040115,30]
[394458643,1763596463074,500.0,0.00040115,30]
[394458644,1763596463146,500.0,0.00040115,30]
[394458645,1763596463237,500.0,0.00040115,30]
[394458646,1763596463318,500.0,0.00040115,30]
[394458647,1763596463394,500.0,0.00040115,30]
[394458648,1763596463480,500.0,0.00040115,30]
[394458649,1763596463553,500.0,0.00040115,30]
[394458650,1763596463639,500.0,0.00040115,30]
[394458651,1763596463802,500.0,0.00040115,30]
[394458652,1763596463893,500.0,0.00040115,30]
[394458653,1763596463981,500.0,0.00040115,30]
[394458654,1763596464093,-399.59102635,0.00015106,7]
[394458655,1763596464186,-767.83590197,0.00017681,7]
[394458656,1763596464264,-2000.0,0.00018817,7]
[394458657,1763596464343,-1000.0,0.00019271,7]
[394458658,1763596464423,-791.0,0.00019271,7]
[394458659,1763596464499,-288.44487316,0.0002,14]
[394458660,1763596464582,-4750.00000052,0.0002,7]
[394458661,1763596464829,-1000.0,0.00021198,7]
[394458662,1763596464906,-1000.0,0.00021198,7]
[394458663,1763596464987,-400.87691731,0.000212,7]
[394458664,1763596465063,-1598.36410539,0.00021373,7]
[394458665,1763596465136,-165.0,0.00023,7]
[394458666,1763596465208,-555.0,0.00023,7]
[394458667,1763596465289,-1356.21,0.000232,7]
[394458668,1763596465361,-761.65,0.000232,14]
[394458669,1763596465434,-555.0,0.00023288,7]
[394458670,1763596465513,-1000.0,0.00023317,7]
[394458671,1763596465590,-1000.0,0.00023317,7]
[394458672,1763596465667,-579.0,0.00023317,7]
[394458673,1763596465743,-2000.0,0.00023935,7]
[394458674,1763596465831,-555.0,0.00024164,7]
[394458675,1763596465905,-430.33138217,0.00024233,7]
[394458676,1763596465975,-220.0,0.00024439,15]
[394458677,1763596466042,-151.0,0.00024658,7]
[394458678,1763596466121,-151.0,0.00024658,7]
[394458679,1763596466190,-151.0,0.00024658,7]
[394458680,1763596466261,-151.0,0.00024658,7]
[394458681,1763596466334,-151.0,0.00024658,7]
[394458682,1763596466411,-151.0,0.00024658,7]
[394458683,1763596466491,-151.0,0.00024658,7]
[394458684,1763596466568,-151.0,0.00024658,7]
[394458685,1763596466645,-151.0,0.00024658,7]
[394458686,1763596466725,-151.0,0.00024658,7]
[394458687,1763596466807,-151.0,0.00024658,7]
[394458688,1763596466898,-235.98413,0.00024658,7]
[394458689,1763596466986,-156.041548,0.00024658,7]
[394458690,1763596467069,-151.0,0.00024658,7]
[394458691,1763596467153,-151.0,0.00024658,7]
[394458692,1763596467233,-167.16677,0.00024658,7]
[394458693,1763596467309,-151.0,0.00024658,7]
[394458694,1763596467387,-151.0,0.00024658,7]
[394458695,1763596467463,-151.0,0.00024658,7]
[394458696,1763596467539,-151.0,0.00024658,7]
[394458697,1763596467613,-151.0,0.00024658,7]
[394458698,1763596467691,-246.94915,0.00024658,7]
[394458699,1763596467775,-151.0,0.00024658,7]
[394458700,1763596467854,-151.0,0.00024658,7]
[394458701,1763596467932,-151.0,0.00024658,7]
[394458702,1763596468014,-151.0,0.00024658,7]
[394458703,1763596468090,-151.0,0.00024658,7]
[394458704,1763596468163,-151.0,0.00024658,7]
[394458705,1763596468236,-151.0,0.00024658,7]
[394458706,1763596468309,-195.353028,0.00024658,7]
[394458707,1763596468382,-195.353028,0.00024658,7]
[394458708,1763596468456,-195.353028,0.00024658,7]
[394458709,1763596468526,-195.353028,0.00024658,7]
[394458710,1763596468591,-195.353028,0.00024658,7]
[394458711,1763596468659,-195.353028,0.00024658,7]
[394458712,1763596468726,-195.353028,0.00024658,7]
[394458713,1763596468793,-195.353028,0.00024658,7]
[394458714,1763596468865,-195.353028,0.00024658,7]
[394458715,1763596468940,-195.353028,0.00024658,7]
[394458716,1763596469016,-195.353028,0.00024658,7]
[394458717,1763596469086,-195.353028,0.00024658,7]
[394458718,1763596469160,-195.353028,0.00024658,7]
[394458719,1763596469244,-195.353028,0.00024658,7]
[394458720,1763596469319,-195.353028,0.00024658,7]
[394458721,1763596469396,-195.353028,0.00024658,7]
[394458722,1763596469473,-195.353028,0.00024658,7]
[394458723,1763596469552,-195.353028,0.00024658,7]
[394458724,1763596469631,-195.353028,0.00024658,7]
[394458725,1763596469712,-195.353036,0.00024658,7]
[394458726,1763596469797,-261.006127,0.00024658,7]
[394458727,1763596469881,-526.58250429,0.00024858,7]
[394458728,1763596469957,-71535.81897296,0.00025,5]
[394458729,1763596470030,-79077.7537473,0.00025,15]
[394458730,1763596470105,-261.006127,0.00025078,7]
[394458731,1763596470176,-556.0,0.00025373,7]
[394458732,1763596470251,-261.006127,0.00025499,7]
[394458733,1763596470324,-1356.21,0.000255,7]
[394458734,1763596470398,-1000.0,0.00025649,7]
[394458735,1763596470470,-1000.0,0.00025649,7]
[394458736,1763596470541,-1000.0,0.00025649,7]
[394458737,1763596470604,-761.65,0.000257,14]
[394458738,1763596470674,-261.006127,0.0002592,7]
[394458739,1763596470742,-156.612801,0.0002634,7]
[394458740,1763596470813,-261.006127,0.0002634,7]
[394458741,1763596470888,-166.854031,0.0002634,7]
[394458742,1763596470958,-175.080428,0.0002634,7]
[394458743,1763596471029,-565.78661687,0.00026341,7]
[394458744,1763596471110,-58736.96545781,0.00027,30]
[394458745,1763596471178,-600.0,0.00027,14]
[394458746,1763596471247,-400.87691731,0.00027,30]
[394458747,1763596471309,-555.0,0.00027064,7]
[394458748,1763596471371,-565.45921427,0.0002739,7]
[394458749,1763596471437,-151.0,0.00027397,7]
[394458750,1763596471502,-151.0,0.00027397,7]
[394458751,1763596471573,-151.0,0.00027397,7]
[394458752,1763596471658,-151.0,0.00027397,7]
[394458753,1763596471745,-151.0,0.00027397,7]
[394458754,1763596471831,-151.0,0.00027397,7]
[394458755,1763596471923,-151.0,0.00027397,7]
[394458756,1763596472154,-151.0,0.00027397,7]
[394458757,1763596472231,-151.0,0.00027397,7]
[394458758,1763596472310,-200.0,0.00027573,5]
[394458759,1763596472390,-1356.21,0.000276,7]
[394458760,1763596472467,-709.17976208,0.00027612,5]
[394458761,1763596472546,-3592.72291789,0.0002764,7]
[394458762,1763596472624,-400.87691731,0.000278,30]
[394458763,1763596472707,-400.87691731,0.00028,10]
[394458764,1763596472791,-761.65,0.000281,14]
[394458765,1763596472872,-1000.0,0.00028214,30]
[394458766,1763596472951,-426.0,0.00028214,30]
[394458767,1763596473024,-86172.5349908,0.000285,7]
[394458768,1763596473097,-302.97098052,0.00028668,5]
[394458769,1763596473173,-555.0,0.00028756,14]
[394458770,1763596473249,-339.93331303,0.00028808,9]
[394458771,1763596473327,-339.93331303,0.00028933,17]
[394458772,1763596473404,-237.97563741,0.00028974,30]
[394458773,1763596473481,-555.0,0.00028997,14]
[394458774,1763596473554,-400.87691731,0.00029,7]
[394458775,1763596473627,-2000.0,0.00029054,7]
[394458776,1763596473702,-339.93331303,0.00029057,25]
[394458777,1763596473775,-205.10373104,0.00029068,14]
[394458778,1763596473864,-339.93331303,0.00029181,32]
[394458779,1763596473960,-339.93331303,0.00029305,40]
[394458780,1763596474040,-339.93331303,0.00029429,48]
[394458781,1763596474120,-339.93331303,0.00029553,56]
[394458782,1763596474214,-339.93331303,0.00029678,63]
[394458783,1763596474304,-1356.21,0.000297,7]
[394458784,1763596474384,-339.93331303,0.00029802,71]
[394458785,1763596474460,-400.87691731,0.000299,7]
[394458786,1763596474532,-339.93331303,0.00029926,79]
[394458787,1763596474606,-339.93331303,0.0003005,86]
[394458788,1763596474680,-339.93331303,0.00030174,94]
[394458789,1763596474753,-761.65,0.000302,14]
[394458790,1763596474830,-339.93331303,0.00030299,102]
[394458791,1763596474908,-339.93331303,0.00030423,110]
[394458792,1763596474988,-555.0,0.00030447,14]
[394458793,1763596475070,-180.0,0.0003126,14]
[394458794,1763596475154,-761.65,0.000322,14]
[394458795,1763596475231,-3068.27226428,0.00032371,7]
[394458796,1763596475306,-1356.21,0.000325,7]
[394458797,1763596475390,-3967.65,0.00032877,10]
[394458798,1763596475467,-7566.05,0.00032877,10]
[394458799,1763596475539,-193.01,0.00032877,7]
[394458800,1763596475612,-153.69344454,0.00032877,14]
[394458801,1763596475683,-400.87691731,0.00033,10]
[394458802,1763596475765,-480.12,0.000331,7]
[394458803,1763596475851,-162.61413972,0.000332,117]
[394458804,1763596475927,-162.61413972,0.000332,117]
[394458805,1763596476003,-162.61413972,0.000332,117]
[394458806,1763596476079,-404.05,0.0003351,7]
[394458807,1763596476163,-633.73663932,0.00033576,120]
[394458808,1763596476247,-3383.9,0.000336,14]
[394458809,1763596476330,-252.142156,0.00033641,30]
[394458810,1763596476413,-1000.0,0.000341,7]
[394458811,1763596476494,-2000.0,0.00034172,7]
[394458812,1763596476574,-57759.3920911,0.00034247,30]
[394458813,1763596476674,-177.0,0.00034548,59]
[394458814,1763596476756,-500.0,0.00034767,7]
[394458815,1763596476836,-158.0,0.00035,120]
[394458816,1763596476914,-1356.21,0.00035,7]
[394458817,1763596476989,-761.65,0.00035,30]
[394458818,1763596477060,-400.87691731,0.00035,30]
[394458819,1763596477130,-1000.0,0.000351,7]
[394458820,1763596477202,-251.906843,0.0003516,120]
[394458821,1763596477282,-3383.9,0.000352,14]
[394458822,1763596477360,-669.83556181,0.00035576,120]
[394458823,1763596477438,-614.86331161,0.00035616,7]
[394458824,1763596477515,-500.0,0.00035616,7]
[394458825,1763596477591,-500.0,0.00035616,7]
[394458826,1763596477679,-434.68106043,0.00035616,7]
[394458827,1763596477766,-172.0,0.00035945,14]
[394458828,1763596477847,-166.0,0.00035945,14]
[394458829,1763596477923,-333.0,0.00035945,14]
[394458830,1763596477996,-331.0,0.00035945,14]
[394458831,1763596478066,-2163.40886156,0.00036074,30]
[394458832,1763596478136,-2163.40886156,0.00036166,30]
[394458833,1763596478204,-800.0,0.00036389,7]
[394458834,1763596478272,-800.0,0.00036428,7]
[394458835,1763596478339,-2163.40886156,0.00036456,30]
[394458836,1763596478411,-800.0,0.00036556,7]
[394458837,1763596478485,-800.0,0.00036623,7]
[394458838,1763596478556,-168.0,0.00036683,120]
[394458839,1763596478626,-2163.40886156,0.00036717,30]
[394458840,1763596478701,-3383.9,0.000368,14]
[394458841,1763596478773,-800.0,0.00036814,7]
[394458842,1763596478847,-500.0,0.00036986,15]
[394458843,1763596478921,-500.0,0.00036986,15]
[394458844,1763596478999,-500.0,0.00036986,15]
[394458845,1763596479076,-500.0,0.00036986,15]
[394458846,1763596479147,-500.0,0.00036986,15]
[394458847,1763596479215,-291.95007962,0.00036986,15]
[394458848,1763596479289,-500.0,0.00036986,15]
[394458849,1763596479356,-500.0,0.00036986,15]
[394458850,1763596479539,-500.0,0.00036986,15]
[394458851,1763596479615,-500.0,0.00036986,15]
[394458852,1763596479696,-500.0,0.00036986,15]
[394458853,1763596479788,-500.0,0.00036986,15]
[394458854,1763596479873,-500.0,0.00036986,15]
[394458855,1763596479956,-500.0,0.00036986,15]
[394458856,1763596480036,-500.0,0.00036986,15]
[394458857,1763596480115,-500.0,0.00036986,15]
[394458858,1763596480196,-500.0,0.00036986,15]
[394458859,1763596480280,-500.0,0.00036986,15]
[394458860,1763596480367,-500.0,0.00036986,15]
[394458861,1763596480450,-500.0,0.00036986,15]
[394458862,1763596480530,-500.0,0.00036986,15]
[394458863,1763596480609,-1512.85133489,0.00036986,15]
[394458864,1763596480684,-1512.85133489,0.00036986,15]
[394458865,1763596480758,-1512.85133489,0.00036986,15]
[394458866,1763596480830,-1449.8158626,0.00036986,15]
[394458867,1763596480903,-1512.85133489,0.00036986,15]
[394458868,1763596480975,-1512.85133489,0.00036986,15]
[394458869,1763596481042,-1449.8158626,0.00036986,15]
[394458870,1763596481107,-1449.8158626,0.00036986,15]
[394458871,1763596481175,-1512.85133489,0.00036986,15]
[394458872,1763596481240,-1512.85133489,0.00036986,15]
[394458873,1763596481307,-1449.8158626,0.00036986,15]
[394458874,1763596481375,-1181.80228356,0.00036986,15]
[394458875,1763596481547,500.0,0.00040115,30]
[394458876,1763596481621,500.0,0.00040115,30]
[394458877,1763596481699,500.0,0.00040115,30]
[394458878,1763596481818,500.0,0.00040115,30]
[394458879,1763596481896,500.0,0.00040115,30]
[394458880,1763596481971,500.0,0.00040115,30]
[394458881,1763596482049,500.0,0.00040115,30]
[394458882,1763596482123,500.0,0.00040115,30]
[394458883,1763596482195,500.0,0.00040115,30]